[Event "Late-Titled-Tuesday-Blitz-October-10-2023"]
[Site "Chess.com"]
[Date "2023.10.10"]
[Round "3"]
[White "Baku_Boulevard"]
[Black "MMSANCHEZ"]
[Result "1-0"]
[WhiteElo "3037"]
[BlackElo "2755"]
[TimeControl "180+1"]
[EndTime "14:25:08 PDT"]
[Termination "Baku_Boulevard won by resignation"]

1. e4 {[%clk 0:02:58.4]} 1... e6 {[%clk 0:02:58.8]} 2. d4 {[%clk 0:02:58.5]}
2... d5 {[%clk 0:02:58.9]} 3. Nd2 {[%clk 0:02:58.9]} 3... c5 {[%clk 0:02:58.6]}
4. Ngf3 {[%clk 0:02:58.4]} 4... cxd4 {[%clk 0:02:56.9]} 5. Nxd4 {[%clk 0:02:59]}
5... Nc6 {[%clk 0:02:56.1]} 6. Bb5 {[%clk 0:02:58.7]} 6... Bd7 {[%clk
0:02:56.1]} 7. Nxc6 {[%clk 0:02:59.1]} 7... bxc6 {[%clk 0:02:56.2]} 8. Bd3
{[%clk 0:02:59.3]} 8... Bd6 {[%clk 0:02:56.4]} 9. Qe2 {[%clk 0:02:59.7]} 9...
Qc7 {[%clk 0:02:54.1]} 10. Nf3 {[%clk 0:02:59.5]} 10... Ne7 {[%clk 0:02:53.1]}
11. c4 {[%clk 0:03:00.1]} 11... O-O {[%clk 0:02:50.3]} 12. h4 {[%clk 0:02:58.6]}
12... Ng6 {[%clk 0:02:48.5]} 13. h5 {[%clk 0:02:57.2]} 13... Nf4 {[%clk
0:02:47]} 14. Bxf4 {[%clk 0:02:56.7]} 14... Bxf4 {[%clk 0:02:47.9]} 15. e5
{[%clk 0:02:57]} 15... Rab8 {[%clk 0:02:41]} 16. b3 {[%clk 0:02:48.9]} 16... f6
{[%clk 0:02:04.5]} 17. h6 {[%clk 0:02:45.9]} 17... g6 {[%clk 0:01:53.2]} 18.
exf6 {[%clk 0:02:42.7]} 18... Rxf6 {[%clk 0:01:52.9]} 19. cxd5 {[%clk
0:02:24.2]} 19... cxd5 {[%clk 0:01:51.6]} 20. O-O {[%clk 0:02:17.4]} 20... Bxh6
{[%clk 0:01:37.5]} 21. Ne5 {[%clk 0:02:17.4]} 21... Bf4 {[%clk 0:01:32.6]} 22.
Ng4 {[%clk 0:02:17.2]} 22... Rff8 {[%clk 0:01:30.8]} 23. g3 {[%clk 0:02:15.7]}
23... Bd6 {[%clk 0:01:18.2]} 24. Rac1 {[%clk 0:01:58.9]} 24... Qd8 {[%clk
0:01:18.2]} 25. f4 {[%clk 0:01:52.6]} 25... Qb6+ {[%clk 0:01:14.6]} 26. Kh2
{[%clk 0:01:51.9]} 26... a5 {[%clk 0:01:09.2]} 27. Qb2 {[%clk 0:01:51.8]} 27...
d4 {[%clk 0:01:01.9]} 28. Rc4 {[%clk 0:01:51.6]} 28... Bc5 {[%clk 0:00:52.2]}
29. Qe2 {[%clk 0:01:49.8]} 29... Bb5 {[%clk 0:00:46]} 30. Qe5 {[%clk 0:01:49.3]}
30... h5 {[%clk 0:00:41.3]} 31. Nh6+ {[%clk 0:01:39.9]} 31... Kh7 {[%clk
0:00:40.7]} 32. Qxh5 {[%clk 0:01:39.7]} 32... Bxc4 {[%clk 0:00:33]} 33. Qxg6+
{[%clk 0:01:39.5]} 1-0

[Event "Late-Titled-Tuesday-Blitz-October-10-2023"]
[Site "Chess.com"]
[Date "2023.10.10"]
[Round "3"]
[White "pedromartinez91"]
[Black "giomar27"]
[Result "1-0"]
[WhiteElo "2550"]
[BlackElo "2289"]
[TimeControl "180+1"]
[EndTime "14:25:09 PDT"]
[Termination "pedromartinez91 won by resignation"]

1. d4 {[%clk 0:02:56.3]} 1... Nf6 {[%clk 0:02:59.6]} 2. c4 {[%clk 0:02:56.4]}
2... c5 {[%clk 0:03:00.3]} 3. d5 {[%clk 0:02:55.4]} 3... b5 {[%clk 0:03:00.7]}
4. cxb5 {[%clk 0:02:56.1]} 4... a6 {[%clk 0:03:00.7]} 5. bxa6 {[%clk 0:02:54.8]}
5... d6 {[%clk 0:03:00.6]} 6. Nc3 {[%clk 0:02:54.6]} 6... g6 {[%clk 0:03:00.5]}
7. e4 {[%clk 0:02:54.1]} 7... Bg7 {[%clk 0:03:00.9]} 8. Nf3 {[%clk 0:02:54]}
8... O-O {[%clk 0:03:01.5]} 9. Be2 {[%clk 0:02:53.2]} 9... Nxa6 {[%clk 0:02:58]}
10. O-O {[%clk 0:02:51.4]} 10... Nc7 {[%clk 0:02:49.2]} 11. a4 {[%clk
0:02:42.4]} 11... Nd7 {[%clk 0:02:48.2]} 12. Nb5 {[%clk 0:02:39.3]} 12... Ba6
{[%clk 0:02:48.4]} 13. Ra3 {[%clk 0:02:37.4]} 13... Nb6 {[%clk 0:02:48.1]} 14.
Nxc7 {[%clk 0:02:34.7]} 14... Qxc7 {[%clk 0:02:47.8]} 15. b3 {[%clk 0:02:22.6]}
15... Rfb8 {[%clk 0:02:44.3]} 16. Bxa6 {[%clk 0:02:19.4]} 16... Rxa6 {[%clk
0:02:44]} 17. Qe2 {[%clk 0:02:20.3]} 17... Rba8 {[%clk 0:02:37.5]} 18. Nd2
{[%clk 0:02:15.3]} 18... e6 {[%clk 0:02:23.4]} 19. dxe6 {[%clk 0:01:55]} 19...
fxe6 {[%clk 0:02:24.3]} 20. Nc4 {[%clk 0:01:55.6]} 20... Nd7 {[%clk 0:02:24.2]}
21. Bf4 {[%clk 0:01:54.8]} 21... e5 {[%clk 0:02:15.6]} 22. Bg5 {[%clk
0:01:48.3]} 22... Nf8 {[%clk 0:02:15.5]} 23. Qd3 {[%clk 0:01:45.9]} 23... Ne6
{[%clk 0:02:15.1]} 24. Qd5 {[%clk 0:01:46.1]} 24... Qf7 {[%clk 0:02:11.9]} 25.
Be3 {[%clk 0:01:44.5]} 25... Nd4 {[%clk 0:02:12.2]} 26. Bxd4 {[%clk 0:01:44]}
26... Qxd5 {[%clk 0:02:11.4]} 27. exd5 {[%clk 0:01:44.1]} 27... cxd4 {[%clk
0:02:05.6]} 28. a5 {[%clk 0:01:33.4]} 28... Rb8 {[%clk 0:02:02.8]} 29. Rb1
{[%clk 0:01:31.8]} 29... Rb5 {[%clk 0:02:01.8]} 30. b4 {[%clk 0:01:30.4]} 30...
Kf7 {[%clk 0:01:59.8]} 31. f3 {[%clk 0:01:30.2]} 31... Ke7 {[%clk 0:02:00]} 32.
Kf1 {[%clk 0:01:30.6]} 32... Ra8 {[%clk 0:01:28.3]} 33. Ke2 {[%clk 0:01:29.2]}
33... Kd7 {[%clk 0:01:19.1]} 34. Kd3 {[%clk 0:01:27.1]} 34... Ra6 {[%clk
0:01:15.4]} 35. Rbb3 {[%clk 0:01:24.4]} 35... Bh6 {[%clk 0:01:12.7]} 36. Nb6+
{[%clk 0:01:21.2]} 36... Kc7 {[%clk 0:01:10.2]} 37. Kc4 {[%clk 0:01:21]} 37...
Rbxb6 {[%clk 0:01:02.4]} 38. axb6+ {[%clk 0:01:21.9]} 38... Kxb6 {[%clk
0:01:03.3]} 39. b5 {[%clk 0:01:17.3]} 39... Rxa3 {[%clk 0:01:01.1]} 40. Rxa3
{[%clk 0:01:18.2]} 40... Bf4 {[%clk 0:01:00.9]} 41. Ra6+ {[%clk 0:01:18.1]}
41... Kc7 {[%clk 0:01:01]} 42. g3 {[%clk 0:01:18.4]} 42... Be3 {[%clk
0:01:00.8]} 43. Rc6+ {[%clk 0:01:18.3]} 43... Kb7 {[%clk 0:01:00.9]} 44. Rxd6
{[%clk 0:01:18.5]} 1-0

[Event "Late-Titled-Tuesday-Blitz-October-10-2023"]
[Site "Chess.com"]
[Date "2023.10.10"]
[Round "3"]
[White "Verony64"]
[Black "JonasGallasch"]
[Result "0-1"]
[WhiteElo "2195"]
[BlackElo "2416"]
[TimeControl "180+1"]
[EndTime "14:25:11 PDT"]
[Termination "JonasGallasch won by resignation"]

1. e4 {[%clk 0:02:26]} 1... e5 {[%clk 0:02:51.9]} 2. Nc3 {[%clk 0:02:20.8]} 2...
Nf6 {[%clk 0:02:50.8]} 3. g3 {[%clk 0:02:21.4]} 3... Bc5 {[%clk 0:02:44.9]} 4.
Bg2 {[%clk 0:02:22.3]} 4... O-O {[%clk 0:02:45.4]} 5. d3 {[%clk 0:02:21.8]} 5...
c6 {[%clk 0:02:45.6]} 6. Nge2 {[%clk 0:02:22.2]} 6... d5 {[%clk 0:02:44]} 7. O-O
{[%clk 0:02:22.4]} 7... h6 {[%clk 0:02:42.7]} 8. exd5 {[%clk 0:02:19.9]} 8...
cxd5 {[%clk 0:02:42.2]} 9. d4 {[%clk 0:02:18.2]} 9... exd4 {[%clk 0:02:42.4]}
10. Nxd4 {[%clk 0:02:18.4]} 10... Bb6 {[%clk 0:02:37.4]} 11. h3 {[%clk
0:02:18.5]} 11... Nc6 {[%clk 0:02:36.4]} 12. Be3 {[%clk 0:02:19]} 12... Re8
{[%clk 0:02:31.5]} 13. Qd2 {[%clk 0:02:18.5]} 13... Ne5 {[%clk 0:02:30.6]} 14.
b3 {[%clk 0:02:17]} 14... Bxh3 {[%clk 0:02:27.5]} 15. f4 {[%clk 0:01:56.2]}
15... Bxg2 {[%clk 0:02:19.2]} 16. Kxg2 {[%clk 0:01:57.1]} 16... Neg4 {[%clk
0:02:16.4]} 17. Bg1 {[%clk 0:01:57.1]} 17... Ne4 {[%clk 0:02:10]} 18. Nxe4
{[%clk 0:01:54.6]} 18... dxe4 {[%clk 0:02:09.6]} 19. Rad1 {[%clk 0:01:49.5]}
19... e3 {[%clk 0:02:09.2]} 20. Qe2 {[%clk 0:01:41]} 20... Bxd4 {[%clk
0:01:39.2]} 21. c3 {[%clk 0:01:38.8]} 21... Qd5+ {[%clk 0:01:34.2]} 22. Rf3
{[%clk 0:01:31.1]} 22... Re4 {[%clk 0:01:22.1]} 23. cxd4 {[%clk 0:01:13.2]}
23... Rxd4 {[%clk 0:01:23]} 24. Rxd4 {[%clk 0:01:10.8]} 24... Qxd4 {[%clk
0:01:22.8]} 25. Bxe3 {[%clk 0:01:08.6]} 25... Qe4 {[%clk 0:01:18.7]} 26. Qd2
{[%clk 0:01:02.2]} 26... Nh2 {[%clk 0:01:12.1]} 27. Kxh2 {[%clk 0:01:00.3]}
27... Qxf3 {[%clk 0:01:12.1]} 28. Qd4 {[%clk 0:00:41.1]} 28... Re8 {[%clk
0:01:09.1]} 0-1

[Event "Late-Titled-Tuesday-Blitz-October-10-2023"]
[Site "Chess.com"]
[Date "2023.10.10"]
[Round "3"]
[White "Smiechu"]
[Black "Denis_Makhnyov"]
[Result "0-1"]
[WhiteElo "2508"]
[BlackElo "2911"]
[TimeControl "180+1"]
[EndTime "14:25:23 PDT"]
[Termination "Denis_Makhnyov won by resignation"]

1. e4 {[%clk 0:03:00.9]} 1... e5 {[%clk 0:03:00]} 2. Nf3 {[%clk 0:03:00.8]} 2...
Nc6 {[%clk 0:03:00.7]} 3. d4 {[%clk 0:03:00.9]} 3... exd4 {[%clk 0:03:00.5]} 4.
Nxd4 {[%clk 0:03:01.6]} 4... Qf6 {[%clk 0:03:00.8]} 5. Nxc6 {[%clk 0:02:57.8]}
5... Bc5 {[%clk 0:03:00.3]} 6. Qe2 {[%clk 0:02:57.1]} 6... dxc6 {[%clk
0:03:00.1]} 7. Be3 {[%clk 0:02:56.7]} 7... Qxb2 {[%clk 0:02:49.3]} 8. Bxc5
{[%clk 0:02:51.1]} 8... Qxa1 {[%clk 0:02:49.2]} 9. Qd1 {[%clk 0:02:48.1]} 9...
Qe5 {[%clk 0:02:41.3]} 10. Be3 {[%clk 0:02:48]} 10... Be6 {[%clk 0:02:38.1]} 11.
Bd3 {[%clk 0:02:46.2]} 11... Nf6 {[%clk 0:02:34.9]} 12. f4 {[%clk 0:02:36.7]}
12... Qa5+ {[%clk 0:02:34]} 13. Bd2 {[%clk 0:02:36]} 13... Qc5 {[%clk
0:02:34.2]} 14. Qe2 {[%clk 0:02:30.4]} 14... Bg4 {[%clk 0:02:33.7]} 15. Qf2
{[%clk 0:02:27]} 15... Qxf2+ {[%clk 0:02:32.9]} 16. Kxf2 {[%clk 0:02:27.9]}
16... O-O-O {[%clk 0:02:33.3]} 17. f5 {[%clk 0:02:17.2]} 17... Rhe8 {[%clk
0:02:28.4]} 18. h3 {[%clk 0:02:16.6]} 18... Bh5 {[%clk 0:02:28.7]} 19. g4 {[%clk
0:02:14.3]} 19... Nxe4+ {[%clk 0:02:27.6]} 20. Bxe4 {[%clk 0:02:13.8]} 20...
Rxe4 {[%clk 0:02:28.5]} 21. gxh5 {[%clk 0:02:13.3]} 21... Rd5 {[%clk 0:02:29.1]}
22. Kf3 {[%clk 0:01:32.4]} 22... Rc4 {[%clk 0:02:28.1]} 23. Re1 {[%clk
0:01:20.4]} 23... Rxf5+ {[%clk 0:02:26.8]} 24. Kg3 {[%clk 0:01:20.4]} 24... Rxc2
{[%clk 0:02:25.5]} 25. Bf4 {[%clk 0:01:11.3]} 25... Rc4 {[%clk 0:02:17.9]} 26.
Rf1 {[%clk 0:01:06]} 26... Rxh5 {[%clk 0:02:08.3]} 27. Nd2 {[%clk 0:01:03.2]}
27... Rc3+ {[%clk 0:02:04.5]} 28. Nf3 {[%clk 0:01:03.1]} 28... f6 {[%clk
0:01:59.7]} 29. Kg4 {[%clk 0:00:59.2]} 29... Rd5 {[%clk 0:01:59.4]} 30. Re1
{[%clk 0:00:48.7]} 30... h5+ {[%clk 0:01:58]} 31. Kg3 {[%clk 0:00:47.4]} 31...
g5 {[%clk 0:01:57.6]} 32. Bc1 {[%clk 0:00:44]} 32... Rdd3 {[%clk 0:01:52.3]} 33.
Rf1 {[%clk 0:00:42.1]} 33... h4+ {[%clk 0:01:47.3]} 34. Kg2 {[%clk 0:00:37.3]}
34... Rxf3 {[%clk 0:01:46.7]} 35. Rxf3 {[%clk 0:00:37]} 35... Rxc1 {[%clk
0:01:47.1]} 36. Rxf6 {[%clk 0:00:37.1]} 36... Rc3 {[%clk 0:01:43.5]} 37. Rf7
{[%clk 0:00:30.3]} 37... b5 {[%clk 0:01:42.1]} 38. Rg7 {[%clk 0:00:28.1]} 38...
Rg3+ {[%clk 0:01:42.3]} 39. Kf2 {[%clk 0:00:25.4]} 39... a5 {[%clk 0:01:43.2]}
40. Rg6 {[%clk 0:00:20.4]} 40... Kb7 {[%clk 0:01:43.4]} 0-1

[Event "Late-Titled-Tuesday-Blitz-October-10-2023"]
[Site "Chess.com"]
[Date "2023.10.10"]
[Round "3"]
[White "Zeck_CH"]
[Black "ArtemDyachuk"]
[Result "1-0"]
[WhiteElo "2465"]
[BlackElo "2623"]
[TimeControl "180+1"]
[EndTime "14:25:24 PDT"]
[Termination "Zeck_CH won on time"]

1. d4 {[%clk 0:03:00.9]} 1... Nf6 {[%clk 0:02:59.6]} 2. c4 {[%clk 0:03:00.8]}
2... e6 {[%clk 0:03:00]} 3. Nf3 {[%clk 0:03:00.5]} 3... c5 {[%clk 0:03:00.2]} 4.
g3 {[%clk 0:02:59]} 4... cxd4 {[%clk 0:02:58.7]} 5. Nxd4 {[%clk 0:02:59.9]} 5...
d5 {[%clk 0:02:59.2]} 6. cxd5 {[%clk 0:02:59.5]} 6... exd5 {[%clk 0:02:53.6]} 7.
Bg2 {[%clk 0:02:59.3]} 7... Nc6 {[%clk 0:02:49.4]} 8. O-O {[%clk 0:02:58.1]}
8... Bc5 {[%clk 0:02:48.6]} 9. Nxc6 {[%clk 0:02:52.7]} 9... bxc6 {[%clk
0:02:48.2]} 10. Qc2 {[%clk 0:02:52.8]} 10... Qb6 {[%clk 0:02:38.7]} 11. Nc3
{[%clk 0:02:51.3]} 11... Bd6 {[%clk 0:02:35.2]} 12. Na4 {[%clk 0:02:51.1]} 12...
Qc7 {[%clk 0:02:34.7]} 13. Bg5 {[%clk 0:02:48.8]} 13... Nd7 {[%clk 0:02:18.7]}
14. Rac1 {[%clk 0:02:47.4]} 14... Bb7 {[%clk 0:02:18.4]} 15. Be3 {[%clk
0:02:44.5]} 15... O-O {[%clk 0:02:04.5]} 16. Nc5 {[%clk 0:02:43.1]} 16... Nxc5
{[%clk 0:02:01.2]} 17. Bxc5 {[%clk 0:02:44]} 17... Rfe8 {[%clk 0:01:58.6]} 18.
e3 {[%clk 0:02:43.7]} 18... a5 {[%clk 0:01:52.8]} 19. Rfd1 {[%clk 0:02:39.4]}
19... a4 {[%clk 0:01:44.9]} 20. Qc3 {[%clk 0:02:36]} 20... Bxc5 {[%clk
0:01:36.9]} 21. Qxc5 {[%clk 0:02:36.2]} 21... Ra5 {[%clk 0:01:36.6]} 22. Qa3
{[%clk 0:02:28.8]} 22... Qb6 {[%clk 0:01:31]} 23. Rd4 {[%clk 0:02:26.1]} 23...
Rb5 {[%clk 0:01:25.2]} 24. Rc2 {[%clk 0:02:20.7]} 24... c5 {[%clk 0:01:08.9]}
25. Rf4 {[%clk 0:02:16.3]} 25... d4 {[%clk 0:01:03.1]} 26. e4 {[%clk 0:02:13.9]}
26... Rb4 {[%clk 0:00:59.8]} 27. h4 {[%clk 0:02:11.5]} 27... h6 {[%clk
0:00:43.3]} 28. Rf5 {[%clk 0:02:07.6]} 28... Bxe4 {[%clk 0:00:31.4]} 29. Bxe4
{[%clk 0:02:06.6]} 29... Rxe4 {[%clk 0:00:32.3]} 30. Rfxc5 {[%clk 0:02:00.8]}
30... Re1+ {[%clk 0:00:29.8]} 31. Kh2 {[%clk 0:01:58.9]} 31... Qb7 {[%clk
0:00:17.9]} 32. Rc6 {[%clk 0:01:54.7]} 32... Qe7 {[%clk 0:00:12.6]} 33. Qd3
{[%clk 0:01:52.9]} 33... Qd7 {[%clk 0:00:04]} 34. Rc7 {[%clk 0:01:48.2]} 34...
Qd5 {[%clk 0:00:01.1]} 35. Rc8+ {[%clk 0:01:47.4]} 1-0

[Event "Late-Titled-Tuesday-Blitz-October-10-2023"]
[Site "Chess.com"]
[Date "2023.10.10"]
[Round "3"]
[White "aa175"]
[Black "Rozhkov_V"]
[Result "1-0"]
[WhiteElo "2609"]
[BlackElo "2411"]
[TimeControl "180+1"]
[EndTime "14:25:27 PDT"]
[Termination "aa175 won on time"]

1. d4 {[%clk 0:03:00.9]} 1... d5 {[%clk 0:02:59.6]} 2. Bf4 {[%clk 0:03:01.2]}
2... Nf6 {[%clk 0:02:59]} 3. e3 {[%clk 0:03:01.5]} 3... c5 {[%clk 0:02:55.6]} 4.
Nf3 {[%clk 0:03:01.7]} 4... Nc6 {[%clk 0:02:53.3]} 5. Nbd2 {[%clk 0:03:00.5]}
5... g6 {[%clk 0:02:53.2]} 6. dxc5 {[%clk 0:02:55.7]} 6... Qa5 {[%clk
0:02:47.5]} 7. c4 {[%clk 0:02:37.8]} 7... Qxc5 {[%clk 0:02:29.8]} 8. a3 {[%clk
0:02:33.7]} 8... dxc4 {[%clk 0:02:18.6]} 9. Bxc4 {[%clk 0:02:32.9]} 9... Bg7
{[%clk 0:02:09]} 10. Rc1 {[%clk 0:02:27.4]} 10... Qf5 {[%clk 0:02:01.5]} 11. O-O
{[%clk 0:02:19.4]} 11... O-O {[%clk 0:01:57.6]} 12. b4 {[%clk 0:02:11.8]} 12...
e5 {[%clk 0:01:41.2]} 13. Bg3 {[%clk 0:01:55.8]} 13... Nh5 {[%clk 0:01:06.1]}
14. Qb3 {[%clk 0:01:34.6]} 14... Nxg3 {[%clk 0:00:57.3]} 15. fxg3 {[%clk
0:01:34.5]} 15... Be6 {[%clk 0:00:19.1]} 16. Bxe6 {[%clk 0:01:25.2]} 16... Qxe6
{[%clk 0:00:17.9]} 17. Qxe6 {[%clk 0:01:24.8]} 17... fxe6 {[%clk 0:00:18.8]} 18.
Ne4 {[%clk 0:01:25.1]} 18... Bh6 {[%clk 0:00:15.3]} 19. Rfe1 {[%clk 0:01:21.6]}
19... a6 {[%clk 0:00:03.8]} 20. Nc5 {[%clk 0:01:20.4]} 20... e4 {[%clk 0:00:04]}
21. Nxe4 {[%clk 0:01:20.4]} 21... Rad8 {[%clk 0:00:02]} 22. Nc5 {[%clk
0:01:20.8]} 22... Rfe8 {[%clk 0:00:01.5]} 23. Nxb7 {[%clk 0:01:20.9]} 23... Rb8
{[%clk 0:00:01.9]} 24. Nd6 {[%clk 0:01:19.6]} 24... Red8 {[%clk 0:00:01.3]} 25.
Ne4 {[%clk 0:01:19.8]} 1-0

[Event "Late-Titled-Tuesday-Blitz-October-10-2023"]
[Site "Chess.com"]
[Date "2023.10.10"]
[Round "3"]
[White "WindWhistler11"]
[Black "Zq1"]
[Result "0-1"]
[WhiteElo "2505"]
[BlackElo "2554"]
[TimeControl "180+1"]
[EndTime "14:25:27 PDT"]
[Termination "Zq1 won by resignation"]

1. Nf3 {[%clk 0:03:00]} 1... d5 {[%clk 0:02:57.9]} 2. g3 {[%clk 0:03:00]} 2...
g6 {[%clk 0:02:58.1]} 3. c4 {[%clk 0:02:59.9]} 3... d4 {[%clk 0:02:55.1]} 4. e3
{[%clk 0:02:58.6]} 4... Nc6 {[%clk 0:02:49.7]} 5. Bg2 {[%clk 0:02:49.2]} 5...
Bg7 {[%clk 0:02:48.6]} 6. d3 {[%clk 0:02:46.7]} 6... Nh6 {[%clk 0:02:44.1]} 7.
e4 {[%clk 0:02:45.3]} 7... a5 {[%clk 0:02:36.3]} 8. Na3 {[%clk 0:02:39.3]} 8...
O-O {[%clk 0:02:33.8]} 9. Bd2 {[%clk 0:02:33.5]} 9... f5 {[%clk 0:02:32.3]} 10.
Ng5 {[%clk 0:02:22.7]} 10... Nf7 {[%clk 0:02:28.1]} 11. h4 {[%clk 0:02:11.7]}
11... Nxg5 {[%clk 0:02:22.5]} 12. hxg5 {[%clk 0:02:10]} 12... Ne5 {[%clk
0:02:21.4]} 13. Qe2 {[%clk 0:02:07.2]} 13... fxe4 {[%clk 0:02:17.4]} 14. Bxe4
{[%clk 0:01:51.6]} 14... Bg4 {[%clk 0:02:14.5]} 15. Qf1 {[%clk 0:01:50.5]} 15...
Nf3+ {[%clk 0:02:13.6]} 16. Bxf3 {[%clk 0:01:48.3]} 16... Bxf3 {[%clk
0:02:13.6]} 17. Rh4 {[%clk 0:01:47.5]} 17... Ra6 {[%clk 0:02:11.4]} 18. Qh3
{[%clk 0:01:42.1]} 18... Qc8 {[%clk 0:01:59.2]} 19. Kf1 {[%clk 0:01:30.5]} 19...
Qxh3+ {[%clk 0:01:52.6]} 20. Rxh3 {[%clk 0:01:31.4]} 20... Bg4 {[%clk
0:01:52.8]} 21. Rh4 {[%clk 0:01:30.3]} 21... Bf5 {[%clk 0:01:52.8]} 22. Ke2
{[%clk 0:01:10.5]} 22... Re6+ {[%clk 0:01:51.2]} 23. Kd1 {[%clk 0:01:11]} 23...
Bxd3 {[%clk 0:01:49.6]} 24. Nb5 {[%clk 0:01:06.5]} 24... Rxf2 {[%clk 0:01:46.6]}
25. Rh1 {[%clk 0:00:43.5]} 25... Bxc4 {[%clk 0:01:36.1]} 26. Na3 {[%clk
0:00:41.7]} 26... Bd5 {[%clk 0:01:33.6]} 27. Re1 {[%clk 0:00:40.6]} 27... Rxe1+
{[%clk 0:01:23.1]} 28. Bxe1 {[%clk 0:00:39.4]} 28... Rxb2 {[%clk 0:01:20.2]} 29.
Bxa5 {[%clk 0:00:29.8]} 29... d3 {[%clk 0:01:13.5]} 0-1

[Event "Late-Titled-Tuesday-Blitz-October-10-2023"]
[Site "Chess.com"]
[Date "2023.10.10"]
[Round "3"]
[White "SanchezKelvin"]
[Black "Flaccidmoves"]
[Result "1-0"]
[WhiteElo "2612"]
[BlackElo "2413"]
[TimeControl "180+1"]
[EndTime "14:25:39 PDT"]
[Termination "SanchezKelvin won on time"]

1. e4 {[%clk 0:02:56.1]} 1... e5 {[%clk 0:02:53.3]} 2. Nf3 {[%clk 0:02:55.2]}
2... Nc6 {[%clk 0:02:53.1]} 3. Bb5 {[%clk 0:02:53]} 3... a6 {[%clk 0:02:52.1]}
4. Ba4 {[%clk 0:02:52.6]} 4... Nf6 {[%clk 0:02:51.8]} 5. O-O {[%clk 0:02:52.3]}
5... Be7 {[%clk 0:02:42.5]} 6. Re1 {[%clk 0:02:50]} 6... b5 {[%clk 0:02:40.3]}
7. Bb3 {[%clk 0:02:49.5]} 7... O-O {[%clk 0:02:38.3]} 8. c3 {[%clk 0:02:49.8]}
8... d5 {[%clk 0:02:35.3]} 9. exd5 {[%clk 0:02:50.7]} 9... Nxd5 {[%clk
0:02:34.6]} 10. Nxe5 {[%clk 0:02:50.9]} 10... Nxe5 {[%clk 0:02:33.2]} 11. Rxe5
{[%clk 0:02:51.8]} 11... c6 {[%clk 0:02:31.5]} 12. Re1 {[%clk 0:02:51.5]} 12...
Bd6 {[%clk 0:02:22.1]} 13. g3 {[%clk 0:02:51.1]} 13... Ra7 {[%clk 0:02:05.4]}
14. d3 {[%clk 0:02:48]} 14... Re7 {[%clk 0:02:01.1]} 15. Nd2 {[%clk 0:02:43.3]}
15... Rfe8 {[%clk 0:01:57.8]} 16. Rxe7 {[%clk 0:02:40.4]} 16... Qxe7 {[%clk
0:01:58.7]} 17. Nf1 {[%clk 0:02:38.1]} 17... Bh3 {[%clk 0:01:44.7]} 18. Ne3
{[%clk 0:02:33.3]} 18... f5 {[%clk 0:01:21.1]} 19. Bd2 {[%clk 0:02:29.6]} 19...
Kh8 {[%clk 0:00:58.9]} 20. Bxd5 {[%clk 0:02:20.5]} 20... cxd5 {[%clk 0:00:59.8]}
21. Qh5 {[%clk 0:02:18.5]} 21... f4 {[%clk 0:00:43.5]} 22. Qxh3 {[%clk
0:02:08.6]} 22... fxe3 {[%clk 0:00:43.2]} 23. Bxe3 {[%clk 0:02:08.6]} 23... Rf8
{[%clk 0:00:34.9]} 24. Qh5 {[%clk 0:02:01.6]} 24... Qf7 {[%clk 0:00:23.4]} 25.
Qxf7 {[%clk 0:02:00.6]} 25... Rxf7 {[%clk 0:00:24.3]} 26. Bd4 {[%clk 0:01:58]}
26... Re7 {[%clk 0:00:23.3]} 27. Kf1 {[%clk 0:01:57.6]} 27... Kg8 {[%clk
0:00:20]} 28. b4 {[%clk 0:01:57.2]} 28... Kf7 {[%clk 0:00:18.3]} 29. a4 {[%clk
0:01:56.8]} 29... Rb7 {[%clk 0:00:05.7]} 30. axb5 {[%clk 0:01:54.5]} 30... axb5
{[%clk 0:00:06.6]} 31. Ra6 {[%clk 0:01:49.5]} 31... Be7 {[%clk 0:00:06.7]} 32.
Ke2 {[%clk 0:01:47.8]} 32... Bf6 {[%clk 0:00:04]} 33. Bxf6 {[%clk 0:01:46.6]}
33... gxf6 {[%clk 0:00:04.9]} 34. Ke3 {[%clk 0:01:46.8]} 34... Ke7 {[%clk
0:00:04.9]} 35. Kd4 {[%clk 0:01:46.8]} 35... Rc7 {[%clk 0:00:01.8]} 36. Rb6
{[%clk 0:01:46.5]} 36... Ra7 {[%clk 0:00:02.3]} 37. Rxb5 {[%clk 0:01:46.5]}
37... Ra2 {[%clk 0:00:03.1]} 38. Rxd5 {[%clk 0:01:43.6]} 38... Rxf2 {[%clk
0:00:02.7]} 39. Rh5 {[%clk 0:01:44.1]} 39... Ke6 {[%clk 0:00:01.5]} 40. Rxh7
{[%clk 0:01:44]} 40... Rb2 {[%clk 0:00:02.1]} 41. Rh4 {[%clk 0:01:43]} 41... Kf5
{[%clk 0:00:01.8]} 42. Kc5 {[%clk 0:01:40.1]} 1-0

[Event "Late-Titled-Tuesday-Blitz-October-10-2023"]
[Site "Chess.com"]
[Date "2023.10.10"]
[Round "3"]
[White "Eloist"]
[Black "NFChess13"]
[Result "0-1"]
[WhiteElo "2437"]
[BlackElo "2639"]
[TimeControl "180+1"]
[EndTime "14:25:53 PDT"]
[Termination "NFChess13 won on time"]

1. e4 {[%clk 0:02:58.6]} 1... e5 {[%clk 0:03:00.3]} 2. Bc4 {[%clk 0:02:53.7]}
2... Nf6 {[%clk 0:02:59.6]} 3. d3 {[%clk 0:02:53.7]} 3... c6 {[%clk 0:02:59.1]}
4. Nf3 {[%clk 0:02:53.5]} 4... d5 {[%clk 0:02:58.5]} 5. Bb3 {[%clk 0:02:52.9]}
5... a5 {[%clk 0:02:59.1]} 6. a4 {[%clk 0:02:43.1]} 6... Bb4+ {[%clk 0:02:58.9]}
7. c3 {[%clk 0:02:42.4]} 7... Bd6 {[%clk 0:02:59.4]} 8. Bg5 {[%clk 0:02:35.2]}
8... O-O {[%clk 0:02:45.1]} 9. O-O {[%clk 0:02:30.2]} 9... h6 {[%clk 0:02:44.3]}
10. Bxf6 {[%clk 0:02:15.3]} 10... Qxf6 {[%clk 0:02:45.2]} 11. exd5 {[%clk
0:02:14.8]} 11... Bg4 {[%clk 0:02:45.7]} 12. Nbd2 {[%clk 0:02:11.9]} 12... Qg6
{[%clk 0:02:42.1]} 13. Ne4 {[%clk 0:01:59.8]} 13... cxd5 {[%clk 0:02:31.4]} 14.
Bxd5 {[%clk 0:01:58]} 14... Ra6 {[%clk 0:02:31.2]} 15. Ng3 {[%clk 0:01:29.6]}
15... Nd7 {[%clk 0:02:24.2]} 16. h3 {[%clk 0:01:20.5]} 16... Be6 {[%clk
0:02:20.3]} 17. Bxe6 {[%clk 0:01:19.3]} 17... Qxe6 {[%clk 0:02:21.2]} 18. d4
{[%clk 0:01:14.7]} 18... e4 {[%clk 0:02:20.1]} 19. Re1 {[%clk 0:01:13.6]} 19...
f5 {[%clk 0:02:18.8]} 20. Nd2 {[%clk 0:01:00.9]} 20... Nf6 {[%clk 0:02:04.8]}
21. Qb3 {[%clk 0:00:49.4]} 21... Nd5 {[%clk 0:01:43]} 22. Nc4 {[%clk 0:00:30.5]}
22... Nf4 {[%clk 0:01:33.4]} 23. f3 {[%clk 0:00:17.4]} 23... Nd3 {[%clk
0:01:27.9]} 24. Nxe4 {[%clk 0:00:09.9]} 24... fxe4 {[%clk 0:01:26.6]} 25. Rxe4
{[%clk 0:00:09.1]} 25... Qf7 {[%clk 0:01:24.3]} 26. Nd2 {[%clk 0:00:06.6]} 26...
Nxb2 {[%clk 0:01:23.4]} 27. Qxb2 {[%clk 0:00:05.9]} 27... Bf4 {[%clk 0:01:17.9]}
28. Nf1 {[%clk 0:00:04.1]} 28... Kh8 {[%clk 0:01:16]} 29. Qa2 {[%clk 0:00:04.2]}
29... Qf5 {[%clk 0:01:15.5]} 30. Rb1 {[%clk 0:00:04.5]} 30... Rg6 {[%clk
0:01:15.3]} 31. Qf2 {[%clk 0:00:02.9]} 31... Qxh3 {[%clk 0:01:12.5]} 0-1